[Event "2018 O2C Doeberl Cup Minor"]
[Site "Canberra Southern Cross Club"]
[Date "2018.03.30"]
[Round "2.2"]
[White "Ong, Weng Yan"]
[Black "Anand, Aditya"]
[Result "1-0"]
[ECO "C44"]
[WhiteElo "1388"]
[BlackElo "1189"]
[PlyCount "87"]
[EventDate "2018.??.??"]
[TimeControl "90+30"]
[WhiteClock "1:15:13"]
[BlackClock "0:51:34"]

1. e4 {[%emt 0:00:00]} e5 {[%emt 0:00:00]} 2. Nf3 {[%emt 0:00:00]} Nc6 {
[%emt 0:00:00]} 3. c3 {[%emt 0:00:00]} d6 {[%emt 0:00:00]} 4. d4 {[%emt 0:00:
00]} exd4 {[%emt 0:00:00]} 5. cxd4 {[%emt 0:00:00]} Bg4 {[%emt 0:00:00]} 6. Be2
{[%emt 0:00:00]} Nf6 {[%emt 0:00:00]} 7. O-O {[%emt 0:00:00]} Be7 {[%emt 0:00:
00]} 8. Nc3 {[%emt 0:00:00]} O-O {[%emt 0:00:00]} 9. Bf4 {[%emt 0:00:00]} d5 {
[%emt 0:00:00]} 10. exd5 {[%emt 0:00:00]} Nxd5 {[%emt 0:00:00]} 11. Nxd5 {
[%emt 0:00:00]} Qxd5 {[%emt 0:00:00]} 12. Bxc7 {[%emt 0:00:00]} Bf6 {[%emt 0:
00:00]} 13. h3 {[%emt 0:00:00]} Bxf3 {[%emt 0:00:00]} 14. Bxf3 {[%emt 0:00:00]}
Qxd4 {[%emt 0:00:00]} 15. Qxd4 {[%emt 0:00:00]} Bxd4 {[%emt 0:00:00]} 16. Bxc6
{[%emt 0:00:00]} bxc6 {[%emt 0:00:00]} 17. Rab1 {[%emt 0:00:00]} Rfc8 {[%emt 0:
00:00]} 18. Bf4 {[%emt 0:00:00]} c5 {[%emt 0:00:00]} 19. Rfe1 {[%emt 0:00:00]}
Re8 {[%emt 0:00:00]} 20. b3 {[%emt 0:00:00]} f6 {[%emt 0:00:00]} 21. Bd6 {
[%emt 0:00:00]} Kf7 {[%emt 0:00:00]} 22. Kf1 {[%emt 0:00:00]} Re6 {[%emt 0:00:
00]} 23. Rxe6 {[%emt 0:00:00]} Kxe6 {[%emt 0:00:00]} 24. Bf4 {[%emt 0:00:00]}
Re8 {[%emt 0:00:00]} 25. Re1+ {[%emt 0:00:00]} Kd7 {[%emt 0:00:00]} 26. Rxe8 {
[%emt 0:00:00]} Kxe8 {[%emt 0:00:00]} 27. Bb8 {[%emt 0:00:00]} a6 {[%emt 0:00:
00]} 28. Bf4 {[%emt 0:00:00]} Kd7 {[%emt 0:00:00]} 29. Ke2 {[%emt 0:00:00]} Kc6
{[%emt 0:00:00]} 30. Be3 {[%emt 0:00:00]} Bxe3 {[%emt 0:00:00]} 31. Kxe3 {
[%emt 0:00:00]} Kb5 {[%emt 0:00:00]} 32. a3 {[%emt 0:00:00]} a5 {[%emt 0:00:00]
} 33. Kd3 {[%emt 0:00:00]} a4 {[%emt 0:00:00]} 34. bxa4+ {[%emt 0:00:00]} Kxa4
{[%emt 0:00:00]} 35. Kc4 {[%emt 0:00:00]} Kxa3 {[%emt 0:00:00]} 36. Kxc5 {
[%emt 0:00:00]} Kb3 {[%emt 0:00:00]} 37. Kd5 {[%emt 0:00:00]} Kc2 {[%emt 0:00:
00]} 38. Ke6 {[%emt 0:00:00]} Kd2 {[%emt 0:00:00]} 39. Kf7 {[%emt 0:00:00]} Ke2
{[%emt 0:00:00]} 40. Kxg7 {[%emt 0:00:00]} Kxf2 {[%emt 0:00:00]} 41. Kxf6 {
[%emt 0:00:00]} Kxg2 {[%emt 0:00:00]} 42. h4 {[%emt 0:00:00]} Kg3 {[%emt 0:00:
00]} 43. h5 {[%emt 0:00:00]} Kf4 {[%emt 0:00:00]} 44. h6 {[%emt 0:00:00]} 1-0

[Event "2018 O2C Doeberl Cup Minor"]
[Site "Canberra Southern Cross Club"]
[Date "2018.03.31"]
[Round "3.2"]
[White "Ho, Lachlan"]
[Black "Ong, Weng Yan"]
[Result "1-0"]
[ECO "C01"]
[WhiteElo "1259"]
[BlackElo "1388"]
[PlyCount "119"]
[EventDate "2018.??.??"]
[TimeControl "90+30"]
[WhiteClock "0:10:24"]
[BlackClock "0:35:59"]

1. e4 {[%emt 0:00:00]} e6 {[%emt 0:00:00]} 2. d4 {[%emt 0:00:00]} d5 {[%emt 0:
00:00]} 3. exd5 {[%emt 0:00:00]} exd5 {[%emt 0:00:00]} 4. c4 {[%emt 0:00:00]}
Nf6 {[%emt 0:00:00]} 5. Nf3 {[%emt 0:00:00]} Be7 {[%emt 0:00:00]} 6. Nc3 {
[%emt 0:00:00]} O-O {[%emt 0:00:00]} 7. Qb3 {[%emt 0:00:00]} dxc4 {[%emt 0:00:
00]} 8. Bxc4 {[%emt 0:01:38]} Nbd7 {[%emt 0:00:00]} 9. Ng5 {[%emt 0:00:00]} Nb6
{[%emt 0:00:00]} 10. Bxf7+ {[%emt 0:00:00]} Kh8 {[%emt 0:00:00]} 11. Be6 {
[%emt 0:00:00]} Qxd4 {[%emt 0:00:00]} 12. Be3 {[%emt 0:00:00]} Bxe6 {[%emt 0:
00:00]} 13. Nxe6 {[%emt 0:00:00]} Qe5 {[%emt 0:00:00]} 14. Nxf8 {[%emt 0:00:00]
} Bc5 {[%emt 0:00:00]} 15. Qe6 {[%emt 0:00:00]} Re8 {[%emt 0:00:00]} 16. Qxe5 {
[%emt 0:00:00]} Rxe5 {[%emt 0:00:00]} 17. O-O-O {[%emt 0:00:00]} Bxe3+ {
[%emt 0:00:00]} 18. fxe3 {[%emt 0:00:00]} Re8 {[%emt 0:00:00]} 19. Rhf1 {
[%emt 0:00:00]} Kg8 {[%emt 0:00:00]} 20. Nxh7 {[%emt 0:02:31]} Kxh7 {[%emt 0:
00:00]} 21. e4 {[%emt 0:00:00]} Nc4 {[%emt 0:00:00]} 22. Rd3 {[%emt 0:00:00]}
Nxe4 {[%emt 0:00:00]} 23. Rf4 {[%emt 0:00:00]} Ned6 {[%emt 0:00:00]} 24. b3 {
[%emt 0:00:00]} Re1+ {[%emt 0:00:00]} 25. Kc2 {[%emt 0:00:00]} Ne5 {[%emt 0:00:
00]} 26. Rd1 {[%emt 0:00:00]} Re3 {[%emt 0:00:00]} 27. Nd5 {[%emt 0:00:00]}
Re2+ {[%emt 0:00:00]} 28. Rd2 {[%emt 0:00:00]} Rxd2+ {[%emt 0:00:00]} 29. Kxd2
{[%emt 0:00:00]} c6 {[%emt 0:00:00]} 30. Ne7 {[%emt 0:00:00]} Kh6 {[%emt 0:00:
00]} 31. Rd4 {[%emt 0:00:00]} Nb5 {[%emt 0:00:00]} 32. Re4 {[%emt 0:00:00]} Nd7
{[%emt 0:00:00]} 33. a4 {[%emt 0:00:00]} Nc7 {[%emt 0:00:00]} 34. Rc4 {[%emt 0:
00:00]} Nf6 {[%emt 0:00:00]} 35. Nf5+ {[%emt 0:00:00]} Kg6 {[%emt 0:00:06]} 36.
Nd6 {[%emt 0:00:00]} b6 {[%emt 0:01:26]} 37. Rxc6 {[%emt 0:00:00]} Ne6 {
[%emt 0:01:01]} 38. Nb5 {[%emt 0:00:00]} Nc5 {[%emt 0:01:38]} 39. Kc2 {[%emt 0:
00:00]} Kf5 {[%emt 0:01:50]} 40. Nxa7 {[%emt 0:00:00]} Nd5 {[%emt 0:01:25]} 41.
Rd6 {[%emt 0:00:00]} Ke5 {[%emt 0:01:32]} 42. Rg6 {[%emt 0:00:00]} Ne6 {
[%emt 0:01:03]} 43. Nc8 {[%emt 0:00:00]} Kf5 {[%emt 0:01:07]} 44. Rg3 {[%emt 0:
00:00]} Kf6 {[%emt 0:01:21]} 45. Kd3 {[%emt 0:00:00]} Nc5+ {[%emt 0:01:54]} 46.
Kc4 {[%emt 0:00:00]} Nf4 {[%emt 0:00:47]} 47. Nxb6 {[%emt 0:00:00]} Nfe6 {
[%emt 0:00:35]} 48. b4 {[%emt 0:00:00]} Nb7 {[%emt 0:00:48]} 49. Kd5 {[%emt 0:
01:57]} Nf4+ {[%emt 0:00:29]} 50. Kc6 {[%emt 0:00:12]} Nd8+ {[%emt 0:00:20]}
51. Kb5 {[%emt 0:00:00]} Nfe6 {[%emt 0:00:22]} 52. Rd3 {[%emt 0:00:00]} Nc7+ {
[%emt 0:00:27]} 53. Kc4 {[%emt 0:00:00]} Nf7 {[%emt 0:00:25]} 54. Nd5+ {
[%emt 0:00:00]} Nxd5 {[%emt 0:00:27]} 55. Rxd5 {[%emt 0:00:00]} Ke6 {[%emt 0:
00:18]} 56. a5 {[%emt 0:00:00]} Nd6+ {[%emt 0:00:14]} 57. Rxd6+ {[%emt 0:00:00]
} Kxd6 {[%emt 0:00:15]} 58. Kb5 {[%emt 0:00:00]} Kc7 {[%emt 0:00:19]} 59. Kc5 {
[%emt 0:00:00]} Kb7 {[%emt 0:00:27]} 60. b5 {[%emt 0:00:34]} 1-0

[Event "2018 O2C Doeberl Cup Minor"]
[Site "Canberra Southern Cross Club"]
[Date "2018.03.31"]
[Round "4.2"]
[White "Young, Dashiell"]
[Black "Rowland, Adam"]
[Result "1-0"]
[ECO "D44"]
[WhiteElo "1259"]
[BlackElo "1361"]
[PlyCount "39"]
[EventDate "2018.??.??"]
[TimeControl "90+30"]
[WhiteClock "1:16:08"]
[BlackClock "1:05:43"]

1. d4 {[%emt 0:00:00]} Nf6 {[%emt 0:00:00]} 2. Nf3 {[%emt 0:00:00]} d5 {
[%emt 0:00:00]} 3. c4 {[%emt 0:00:00]} c6 {[%emt 0:00:00]} 4. Nc3 {[%emt 0:00:
00]} e6 {[%emt 0:00:00]} 5. Bg5 {[%emt 0:00:00]} dxc4 {[%emt 0:00:00]} 6. e4 {
[%emt 0:00:00]} b5 {[%emt 0:00:00]} 7. e5 {[%emt 0:00:00]} h6 {[%emt 0:00:00]}
8. Bh4 {[%emt 0:00:00]} g5 {[%emt 0:00:00]} 9. Nxg5 {[%emt 0:00:00]} hxg5 {
[%emt 0:00:00]} 10. Bxg5 {[%emt 0:00:00]} Nbd7 {[%emt 0:00:00]} 11. exf6 {
[%emt 0:00:00]} Bb7 {[%emt 0:00:00]} 12. a4 {[%emt 0:00:00]} b4 {[%emt 0:00:00]
} 13. Ne4 {[%emt 0:00:00]} c5 {[%emt 0:00:00]} 14. Nxc5 {[%emt 0:00:00]} Nxc5 {
[%emt 0:00:00]} 15. dxc5 {[%emt 0:00:00]} Bxc5 {[%emt 0:00:27]} 16. Bxc4 {
[%emt 0:02:12]} Bxg2 {[%emt 0:00:00]} 17. Bb5+ {[%emt 0:00:00]} Kf8 {[%emt 0:
00:00]} 18. Qg4 {[%emt 0:00:00]} Bxh1 {[%emt 0:06:33]} 19. Bh6+ {[%emt 0:00:07]
} Rxh6 {[%emt 0:00:05]} 20. Qg7# {[%emt 0:00:05]} 1-0

[Event "2018 O2C Doeberl Cup Minor"]
[Site "Canberra Southern Cross Club"]
[Date "2018.04.01"]
[Round "5.2"]
[White "Poyiatzis, Alexandros"]
[Black "Young, Dashiell"]
[Result "0-1"]
[ECO "B50"]
[WhiteElo "1299"]
[BlackElo "1259"]
[PlyCount "148"]
[EventDate "2018.??.??"]
[TimeControl "90+30"]
[WhiteClock "0:06:53"]
[BlackClock "0:13:10"]

1. e4 {[%emt 0:00:00]} c5 {[%emt 0:00:00]} 2. Nc3 {[%emt 0:00:00]} a6 {[%emt 0:
00:00]} 3. Nf3 {[%emt 0:00:00]} Nc6 {[%emt 0:00:00]} 4. d3 {[%emt 0:00:00]} d6
{[%emt 0:00:00]} 5. g3 {[%emt 0:00:00]} Nf6 {[%emt 0:00:00]} 6. Bg2 {[%emt 0:
00:00]} e6 {[%emt 0:00:00]} 7. O-O {[%emt 0:00:00]} Be7 {[%emt 0:00:00]} 8. Bd2
{[%emt 0:00:00]} O-O {[%emt 0:00:00]} 9. Qe2 {[%emt 0:00:00]} Rb8 {[%emt 0:00:
00]} 10. a4 {[%emt 0:00:00]} b5 {[%emt 0:00:00]} 11. Nd1 {[%emt 0:00:00]} Bb7 {
[%emt 0:00:00]} 12. c3 {[%emt 0:00:00]} c4 {[%emt 0:00:00]} 13. axb5 {[%emt 0:
00:00]} axb5 {[%emt 0:00:00]} 14. Nd4 {[%emt 0:00:00]} Ne5 {[%emt 0:00:00]} 15.
dxc4 {[%emt 0:00:00]} Nxc4 {[%emt 0:00:00]} 16. Be1 {[%emt 0:00:00]} Qb6 {
[%emt 0:00:00]} 17. b3 {[%emt 0:00:00]} Ne5 {[%emt 0:00:00]} 18. f4 {[%emt 0:
00:00]} Neg4 {[%emt 0:00:00]} 19. h3 {[%emt 0:00:00]} e5 {[%emt 0:00:00]} 20.
hxg4 {[%emt 0:00:00]} exd4 {[%emt 0:00:00]} 21. Bf2 {[%emt 0:00:00]} Qc6 {
[%emt 0:00:00]} 22. Bxd4 {[%emt 0:00:00]} Nxe4 {[%emt 0:00:00]} 23. Qc2 {
[%emt 0:00:00]} d5 {[%emt 0:00:00]} 24. Re1 {[%emt 0:00:00]} Bc5 {[%emt 0:00:
00]} 25. Bxe4 {[%emt 0:00:00]} Bxd4+ {[%emt 0:00:00]} 26. cxd4 {[%emt 0:00:00]}
dxe4 {[%emt 0:00:00]} 27. Qxc6 {[%emt 0:00:00]} Bxc6 {[%emt 0:00:00]} 28. Nc3 {
[%emt 0:00:00]} Rfe8 {[%emt 0:00:00]} 29. Re3 {[%emt 0:00:00]} Ra8 {[%emt 0:02:
38]} 30. Rae1 {[%emt 0:00:00]} Red8 {[%emt 0:08:32]} 31. d5 {[%emt 0:00:43]}
Bxd5 {[%emt 0:00:14]} 32. Nxd5 {[%emt 0:00:15]} Rxd5 {[%emt 0:00:04]} 33. Rxe4
{[%emt 0:00:23]} Kf8 {[%emt 0:00:15]} 34. Re5 {[%emt 0:00:41]} Rad8 {[%emt 0:
01:15]} 35. b4 {[%emt 0:00:47]} f6 {[%emt 0:01:32]} 36. Re6 {[%emt 0:01:33]}
R5d6 {[%emt 0:00:58]} 37. f5 {[%emt 0:00:55]} Rd4 {[%emt 0:00:18]} 38. R1e4 {
[%emt 0:01:05]} Rxe4 {[%emt 0:01:14]} 39. Rxe4 {[%emt 0:00:07]} Rd3 {[%emt 0:
00:04]} 40. Kf2 {[%emt 0:00:39]} Rb3 {[%emt 0:00:07]} 41. Rd4 {[%emt 0:01:44]}
g6 {[%emt 0:01:38]} 42. Kg2 {[%emt 0:01:12]} Kg7 {[%emt 0:00:14]} 43. Rd7+ {
[%emt 0:01:03]} Kh6 {[%emt 0:00:10]} 44. g5+ {[%emt 0:02:07]} Kxg5 {[%emt 0:00:
32]} 45. fxg6 {[%emt 0:00:27]} Kxg6 {[%emt 0:00:12]} 46. Rd4 {[%emt 0:00:18]}
f5 {[%emt 0:00:30]} 47. Kh3 {[%emt 0:00:42]} Kf6 {[%emt 0:00:57]} 48. Kh4 {
[%emt 0:00:39]} Ke5 {[%emt 0:00:16]} 49. Rf4 {[%emt 0:00:31]} Re3 {[%emt 0:00:
47]} 50. Rf1 {[%emt 0:01:22]} Re4+ {[%emt 0:00:06]} 51. Kg5 {[%emt 0:00:46]}
Rg4+ {[%emt 0:00:04]} 52. Kh6 {[%emt 0:00:02]} Rxg3 {[%emt 0:00:08]} 53. Kxh7 {
[%emt 0:00:38]} Rb3 {[%emt 0:00:17]} 54. Re1+ {[%emt 0:01:09]} Kd4 {[%emt 0:00:
32]} 55. Kg6 {[%emt 0:00:39]} f4 {[%emt 0:00:16]} 56. Kf5 {[%emt 0:00:32]} f3 {
[%emt 0:03:24]} 57. Re4+ {[%emt 0:00:08]} Kc3 {[%emt 0:00:21]} 58. Rf4 {
[%emt 0:00:20]} Kd2 {[%emt 0:00:31]} 59. Ke5 {[%emt 0:00:40]} Re3+ {[%emt 0:00:
35]} 60. Kd5 {[%emt 0:00:12]} Ke2 {[%emt 0:00:16]} 61. Kc5 {[%emt 0:00:45]}
Re5+ {[%emt 0:00:45]} 62. Kd6 {[%emt 0:00:09]} Rg5 {[%emt 0:00:19]} 63. Re4+ {
[%emt 0:00:40]} Kf2 {[%emt 0:00:13]} 64. Kc6 {[%emt 0:00:21]} Kg2 {[%emt 0:00:
15]} 65. Rd4 {[%emt 0:00:24]} f2 {[%emt 0:00:11]} 66. Rd2 {[%emt 0:00:05]} Kg1
{[%emt 0:00:08]} 67. Rd1+ {[%emt 0:00:15]} f1=Q {[%emt 0:00:04]} 68. Rxf1+ {
[%emt 0:00:02]} Kxf1 {[%emt 0:00:05]} 69. Kb6 {[%emt 0:00:02]} Ke2 {[%emt 0:00:
07]} 70. Ka5 {[%emt 0:00:02]} Kd3 {[%emt 0:00:10]} 71. Kb6 {[%emt 0:00:06]} Kc3
{[%emt 0:00:06]} 72. Ka5 {[%emt 0:00:04]} Kc4 {[%emt 0:00:06]} 73. Kb6 {
[%emt 0:00:04]} Kxb4 {[%emt 0:00:03]} 74. Kc6 {[%emt 0:00:02]} Kc4 {[%emt 0:00:
08]} 0-1

[Event "2018 O2C Doeberl Cup Minor"]
[Site "Canberra Southern Cross Club"]
[Date "2018.04.01"]
[Round "6.2"]
[White "Young, Dashiell"]
[Black "Lee, Lachlan"]
[Result "0-1"]
[ECO "D43"]
[WhiteElo "1259"]
[BlackElo "1211"]
[PlyCount "60"]
[EventDate "2018.??.??"]
[TimeControl "90+30"]
[WhiteClock "0:41:49"]
[BlackClock "0:11:09"]

1. d4 {[%emt 0:00:00]} Nf6 {[%emt 0:00:00]} 2. Nf3 {[%emt 0:00:00]} d5 {
[%emt 0:00:00]} 3. c4 {[%emt 0:00:00]} e6 {[%emt 0:00:00]} 4. Bg5 {[%emt 0:00:
00]} h6 {[%emt 0:00:00]} 5. Bxf6 {[%emt 0:00:00]} Qxf6 {[%emt 0:00:00]} 6. Nc3
{[%emt 0:00:00]} c6 {[%emt 0:00:00]} 7. e3 {[%emt 0:00:00]} Nd7 {[%emt 0:00:00]
} 8. cxd5 {[%emt 0:00:00]} exd5 {[%emt 0:00:00]} 9. Be2 {[%emt 0:00:00]} Qd8 {
[%emt 0:00:00]} 10. O-O {[%emt 0:00:00]} Be7 {[%emt 0:00:00]} 11. a3 {[%emt 0:
00:00]} O-O {[%emt 0:00:00]} 12. b4 {[%emt 0:00:00]} a6 {[%emt 0:00:00]} 13.
Qb3 {[%emt 0:00:00]} Nf6 {[%emt 0:00:00]} 14. a4 {[%emt 0:00:00]} Bf5 {[%emt 0:
00:00]} 15. b5 {[%emt 0:00:00]} axb5 {[%emt 0:00:00]} 16. axb5 {[%emt 0:00:00]}
Qd6 {[%emt 0:00:00]} 17. Ne5 {[%emt 0:00:00]} Ne4 {[%emt 0:00:00]} 18. Nxe4 {
[%emt 0:00:00]} Bxe4 {[%emt 0:00:00]} 19. bxc6 {[%emt 0:00:00]} bxc6 {[%emt 0:
00:00]} 20. Qb6 {[%emt 0:00:00]} Rac8 {[%emt 0:00:00]} 21. Rfc1 {[%emt 0:00:00]
} c5 {[%emt 0:00:00]} 22. Qxd6 {[%emt 0:00:00]} Bxd6 {[%emt 0:00:00]} 23. Nd7 {
[%emt 0:00:00]} Rfd8 {[%emt 0:00:00]} 24. Nxc5 {[%emt 0:00:00]} Rc7 {[%emt 0:
00:00]} 25. Ba6 {[%emt 0:00:00]} Ra8 {[%emt 0:00:00]} 26. Nb3 {[%emt 0:00:00]}
Bc2 {[%emt 0:00:00]} 27. Nd2 {[%emt 0:00:00]} Bf5 {[%emt 0:00:00]} 28. Be2 {
[%emt 0:00:00]} Rxc1+ {[%emt 0:00:00]} 29. Rxc1 {[%emt 0:00:00]} Ra2 {[%emt 0:
00:00]} 30. e4 {[%emt 0:05:21]} Rxd2 {[%emt 0:02:30]} 0-1

[Event "2018 O2C Doeberl Cup Minor"]
[Site "Canberra Southern Cross Club"]
[Date "2018.04.02"]
[Round "7.1"]
[White "Lee, Lachlan"]
[Black "Yang, Oliver"]
[Result "0-1"]
[ECO "A45"]
[WhiteElo "1211"]
[BlackElo "1336"]
[PlyCount "46"]
[EventDate "2018.??.??"]
[TimeControl "90+30"]
[WhiteClock "0:51:59"]
[BlackClock "0:34:37"]

1. d4 {[%emt 0:00:00]} Nf6 {[%emt 0:00:00]} 2. Bf4 {[%emt 0:00:00]} g6 {
[%emt 0:00:00]} 3. Nc3 {[%emt 0:00:00]} d5 {[%emt 0:00:00]} 4. e3 {[%emt 0:00:
00]} Bg7 {[%emt 0:00:00]} 5. h4 {[%emt 0:00:00]} c5 {[%emt 0:00:00]} 6. Be2 {
[%emt 0:00:00]} Nc6 {[%emt 0:00:00]} 7. h5 {[%emt 0:00:00]} Ne4 {[%emt 0:00:00]
} 8. hxg6 {[%emt 0:00:00]} hxg6 {[%emt 0:00:00]} 9. Rxh8+ {[%emt 0:00:00]} Bxh8
{[%emt 0:00:00]} 10. Nb5 {[%emt 0:00:00]} e5 {[%emt 0:00:00]} 11. dxe5 {
[%emt 0:00:00]} Be6 {[%emt 0:00:00]} 12. f3 {[%emt 0:00:00]} Qh4+ {[%emt 0:00:
00]} 13. g3 {[%emt 0:00:00]} Nxg3 {[%emt 0:00:00]} 14. Kd2 {[%emt 0:00:00]} Ke7
{[%emt 0:00:00]} 15. Bxg3 {[%emt 0:00:00]} Qxg3 {[%emt 0:00:00]} 16. f4 {
[%emt 0:00:00]} d4 {[%emt 0:00:32]} 17. Nf3 {[%emt 0:00:00]} Rd8 {[%emt 0:00:
00]} 18. Nd6 {[%emt 0:00:00]} dxe3+ {[%emt 0:00:00]} 19. Kxe3 {[%emt 0:00:00]}
Nxe5 {[%emt 0:00:00]} 20. fxe5 {[%emt 0:00:00]} Bxe5 {[%emt 0:00:00]} 21. Bd3 {
[%emt 0:00:00]} Bf4+ {[%emt 0:00:00]} 22. Ke2 {[%emt 0:00:00]} Qg2+ {[%emt 0:
00:00]} 23. Ke1 {[%emt 0:00:00]} Bg3# {[%emt 0:00:00]} 0-1